bitfinex-derivatives/quotes_ETHF0:USTF0_20250427
["timestamp","ask_amount","ask_price","bid_price","bid_amount"]
[1745732304438,9.80423846,1796.8,1796.6,3.857]
[1745732304630,3.9961,1796.7,1796.4,6.2728]
[1745732304836,2.8832,1796.6,1796.4,8.9856]
[1745732305029,2.8832,1796.6,1796.5,2.7128]
[1745732305231,3.36677846,1796.6,1796.5,2.7128]
[1745732305735,3.36677846,1796.6,1796.5,3.82583]
[1745732311042,0.48357846,1796.6,1796.5,3.82583]
[1745732316537,1.11317,1796.3,1796.1,1.11323]
[1745732316737,1.11317,1796.3,1796.2,6.0446]
[1745732317450,1.11326,1796.2,1796.0,11.20862]
[1745732317747,7.23616,1796.2,1796.0,11.20862]
[1745732318145,0.48502925,1796.1,1796.0,14.16032]
[1745732319641,0.48502925,1796.2,1796.1,1.11327]
[1745732319845,0.48502925,1796.2,1796.1,4.00997]
[1745732320741,0.48502925,1796.2,1796.1,2.8967]
[1745732321344,1.59823925,1796.2,1796.1,2.8967]
[1745732321545,3.48012925,1796.2,1796.1,2.8967]
[1745732321845,0.48502925,1796.2,1796.1,4.00997]
[1745732323557,0.48502925,1796.2,1796.1,9.00997]
[1745732324948,0.48502925,1796.2,1796.1,2.8967]
[1745732325746,0.48502925,1796.2,1796.1,4.00997]
[1745732327450,0.35002924,1796.2,1796.1,9.00997]
[1745732327953,5.53444518,1796.6,1796.4,1.11303]
[1745732328147,5.53444518,1796.6,1796.5,9.93993]
[1745732330454,5.53444518,1796.8,1796.5,8.8269]
[1745732330650,5.53444518,1796.8,1796.6,6.8719]
[1745732330849,5.53444518,1796.8,1796.7,3.903]
[1745732331050,5.53444518,1796.8,1796.7,7.1108]
[1745732334054,6.24401518,1797.0,1796.9,1.11278]
[1745732335263,6.24401518,1797.0,1796.9,6.95558]
[1745732336564,6.24401518,1797.0,1796.9,10.81158]
[1745732338456,5.53444518,1797.1,1796.9,9.6988]
[1745732338663,5.53444518,1797.1,1797.0,3.96242]
[1745732339955,5.53444518,1797.1,1797.0,8.96242]
[1745732340156,5.53444518,1797.1,1797.0,7.17022]
[1745732342764,0.00488373,1797.2,1797.1,1.11265]
[1745732342968,0.00488373,1797.2,1797.1,4.08115]
[1745732343363,0.00488373,1797.2,1797.1,7.10345]
[1745732346670,0.00488373,1797.2,1797.1,4.08115]
[1745732348866,0.00488373,1797.2,1797.1,2.9685]
[1745732349168,0.00488373,1797.2,1797.1,4.08115]
[1745732349869,0.00488373,1797.2,1797.1,1.11265]
[1745732350064,2.93428373,1797.2,1797.0,3.2078]
[1745732350264,2.93428373,1797.2,1797.1,2.8755]
[1745732350464,2.93428373,1797.2,1797.1,3.98815]
[1745732351665,0.00488373,1797.2,1797.1,3.98815]
[1745732351864,0.48738911,1797.2,1797.1,3.98815]
[1745732352473,3.32518911,1797.2,1796.9,3.856]
[1745732352658,3.32518911,1797.2,1797.0,1.11272]
[1745732352862,6.0766,1797.1,1796.9,3.856]
[1745732353070,3.32030538,1797.0,1796.9,3.856]
[1745732353365,1.11282,1796.9,1796.6,1.11295]
[1745732353569,4.43317538,1796.8,1796.4,3.2078]
[1745732353771,4.43317538,1796.8,1796.5,1.11302]
[1745732353971,5.7066,1796.7,1796.4,7.29744]
[1745732354268,5.7066,1796.7,1796.5,1.11303]
[1745732354269,2.8378,1796.6,1796.5,1.11303]
[1745732354763,3.32030538,1796.6,1796.5,1.11303]
[1745732355462,3.32030538,1796.6,1796.5,2.954]
[1745732357276,3.32030538,1796.6,1796.5,4.06703]
[1745732361876,3.32030538,1796.6,1796.5,2.954]
[1745732364274,3.32030538,1796.6,1796.5,4.06703]
[1745732366074,3.32030538,1796.6,1796.3,6.9549]
[1745732366075,6.52810538,1796.6,1796.3,6.9549]
[1745732366273,0.48250538,1796.5,1796.3,10.91411]
[1745732366474,6.14910538,1796.5,1796.3,10.91411]
[1745732366975,0.48250538,1796.4,1796.3,7.81221]
[1745732367172,6.31870538,1796.4,1796.3,3.853]
[1745732367482,6.31870538,1796.4,1796.2,7.27241]
[1745732367665,3.1079,1796.3,1796.2,7.27241]
[1745732367870,3.59040538,1796.3,1796.2,4.32101]
[1745732368977,3.59040538,1796.3,1796.2,7.35381]
[1745732369979,3.59040538,1796.3,1796.2,6.2406]
[1745732370372,3.59040538,1796.3,1796.2,7.35381]
[1745732371581,0.48250538,1796.3,1796.2,7.35381]
[1745732374485,3.69614943,1796.5,1796.4,1.11309]
[1745732374988,4.17872735,1796.5,1796.3,10.86981]
[1745732375285,4.17872735,1796.5,1796.4,4.02669]
[1745732376394,4.17872735,1796.5,1796.4,2.9136]
[1745732376685,4.17872735,1796.5,1796.4,4.02669]
[1745732378890,0.48257792,1796.5,1796.4,4.02669]
[1745732382995,0.48257792,1796.5,1796.4,7.00779]
[1745732386998,0.48257792,1796.5,1796.4,5.8947]
[1745732387500,0.48257792,1796.5,1796.4,7.00779]
[1745732387791,0.48257792,1796.5,1796.4,5.8947]
[1745732388194,1.59560792,1796.5,1796.4,5.8947]
[1745732388393,0.48257792,1796.5,1796.4,5.8947]
[1745732389286,0.48257792,1796.5,1796.4,7.00779]
[1745732392694,4.17872735,1796.5,1796.4,7.00779]
[1745732396692,6.72680384,1796.5,1796.4,7.00779]
[1745732397703,6.72680384,1796.5,1796.4,5.8947]
[1745732397902,6.72680384,1796.5,1796.4,7.00779]
[1745732398703,0.48257792,1796.5,1796.4,7.00779]
[1745732401206,8.5716189,1796.5,1796.4,7.00779]
[1745732403206,8.5716189,1796.5,1796.4,12.00779]
[1745732403907,8.08904098,1796.5,1796.4,12.00779]
[1745732404507,8.08904098,1796.5,1796.4,7.00779]
[1745732405801,8.55461197,1796.5,1796.4,7.00779]
[1745732406704,8.55461197,1796.5,1796.4,5.8947]
[1745732407111,8.55451399,1796.5,1796.4,7.00779]
[1745732407796,8.55451399,1796.5,1796.4,5.8947]
[1745732407997,8.55451399,1796.5,1796.4,7.00779]
[1745732408613,0.46547301,1796.5,1796.4,7.00779]
[1745732414018,0.46547301,1796.5,1796.4,5.8947]
[1745732414922,0.46547301,1796.5,1796.4,7.00779]
[1745732417822,15.40826066,1796.5,1796.4,7.00779]
[1745732420036,15.40826066,1796.5,1796.4,5.8947]
[1745732420233,15.40826066,1796.5,1796.4,2.9136]
[1745732420430,18.28096066,1796.5,1796.4,2.9136]
[1745732421031,18.28096066,1796.5,1796.4,4.02669]
[1745732421437,18.28096066,1796.5,1796.4,2.9136]
[1745732421638,18.28096066,1796.5,1796.4,4.02669]
[1745732422937,18.28096066,1796.5,1796.4,2.9136]
[1745732423140,18.28096066,1796.5,1796.4,4.02669]
[1745732423440,18.28096066,1796.5,1796.4,2.9136]
[1745732424630,18.28096066,1796.5,1796.4,4.02669]
[1745732426335,18.28096066,1796.5,1796.4,2.9136]
[1745732426540,18.28096066,1796.5,1796.4,4.02669]
[1745732426742,18.28096066,1796.5,1796.4,2.9136]
[1745732427642,18.28096066,1796.5,1796.4,4.02669]
[1745732427950,15.40826066,1796.5,1796.4,4.02669]
[1745732428144,15.40826066,1796.5,1796.4,6.94049]
[1745732429245,15.40826066,1796.5,1796.4,11.94049]
[1745732429446,8.55449198,1796.5,1796.4,11.94049]
[1745732429645,8.08901897,1796.5,1796.4,11.94049]
[1745732429834,8.08901897,1796.5,1796.4,6.94049]
[1745732430943,13.08901897,1796.5,1796.3,3.2078]
[1745732431243,1.11334,1796.0,1795.9,2.8303]
[1745732431441,1.1134,1795.9,1795.8,10.62881254]
[1745732431646,4.78588876,1795.9,1795.8,7.42101254]
[1745732432045,3.67248876,1795.9,1795.8,7.42101254]
[1745732432938,6.64338876,1795.9,1795.8,7.42101254]
[1745732433249,7.75678876,1795.9,1795.8,7.42101254]
[1745732433745,6.64338876,1795.9,1795.8,7.42101254]
[1745732434147,0.46468876,1795.9,1795.8,11.56277254]
[1745732434337,0.46468876,1795.9,1795.8,14.38597254]
[1745732434540,15.38913774,1795.9,1795.8,6.96496]
[1745732434835,15.38913774,1795.9,1795.8,10.81296]
[1745732435240,15.38913774,1795.9,1795.8,14.53496]
[1745732435450,14.92444898,1795.9,1795.8,14.53496]
[1745732435946,15.38806812,1795.9,1795.8,14.53496]
[1745732436247,15.38806812,1795.9,1795.8,10.81296]
[1745732436548,14.92444898,1795.9,1795.8,10.81296]
[1745732437043,14.92444898,1795.9,1795.8,19.53496]
[1745732437940,14.92444898,1795.9,1795.8,14.53496]
[1745732438143,3.69696725,1796.0,1795.9,1.1134]
[1745732438349,3.69696725,1796.0,1795.9,7.378]
[1745732439141,3.69696725,1796.0,1795.9,11.1]
[1745732439941,3.69696725,1796.0,1795.9,9.9866]
[1745732440145,3.69696725,1796.0,1795.9,6.2646]
[1745732440346,4.16056235,1796.0,1795.9,6.2646]
[1745732440545,4.16056235,1796.0,1795.9,3.0568]
[1745732440745,7.05256235,1796.0,1795.9,3.0568]
[1745732441239,8.16590235,1796.0,1795.8,3.848]
[1745732441435,6.2755951,1795.9,1795.8,3.848]
[1745732441637,6.2755951,1795.9,1795.5,3.848]
[1745732441947,1.11369,1795.5,1795.2,7.0558]
[1745732442146,5.812,1795.4,1795.2,9.9998]
[1745732442347,6.2755951,1795.4,1795.2,9.9998]
[1745732442742,6.2755951,1795.4,1795.3,2.944]
[1745732442950,5.812,1795.4,1795.3,2.944]
[1745732444343,6.27464101,1795.4,1795.2,7.0558]
[1745732444650,6.27464101,1795.4,1795.2,11.23721]
[1745732444841,5.812,1795.4,1795.2,11.23721]
[1745732445747,3.2078,1795.6,1795.3,3.0676]
[1745732445951,3.2078,1795.6,1795.5,1.11365]
[1745732446254,8.75325088,1795.6,1795.5,1.11365]
[1745732446451,9.21548166,1795.6,1795.5,1.11365]
[1745732446754,6.00768166,1795.6,1795.5,4.32145]
[1745732447051,5.54545088,1795.6,1795.5,14.92385]
[1745732449555,3.2078,1795.9,1795.8,1.11346]
[1745732450052,3.67000573,1795.9,1795.8,1.11346]
[1745732450259,0.46220573,1795.9,1795.8,4.96246]
[1745732450646,3.68477467,1796.0,1795.9,1.1134]
[1745732450845,3.68477467,1796.0,1795.9,7.0608]
[1745732451653,3.68477467,1796.0,1795.9,10.2686]
[1745732451857,3.68477467,1796.0,1795.9,7.0608]
[1745732452246,3.68477467,1796.0,1795.9,10.2686]
[1745732453153,3.68477467,1796.0,1795.9,13.9906]
[1745732454256,3.68477467,1796.3,1796.2,1.11321]
[1745732454856,4.14735108,1796.3,1796.2,4.32101]
[1745732455149,4.14735108,1796.3,1796.2,6.94561]
[1745732455542,3.68477467,1796.3,1796.2,6.94561]
[1745732457355,3.68477467,1796.3,1796.2,10.15341]
[1745732458755,7.37926024,1796.5,1796.2,10.15341]
[1745732458756,3.68477467,1796.6,1796.4,1.11307]
[1745732458944,6.67977467,1796.6,1796.3,2.9466]
[1745732459149,2.995,1796.5,1796.3,4.0597]
[1745732459345,2.995,1796.5,1796.4,2.9466]
[1745732459856,3.45787883,1796.5,1796.4,2.9466]
[1745732460055,3.45787883,1796.5,1796.2,4.32097]
[1745732460257,2.8315,1796.4,1796.1,7.90883]
[1745732460457,2.8315,1796.4,1796.2,4.05981]
[1745732460660,0.46287883,1796.3,1796.2,4.05981]
[1745732465052,2.8315,1796.4,1796.3,1.11315]
[1745732465252,2.8315,1796.4,1796.3,7.33265]
[1745732465659,3.29442567,1796.4,1796.3,7.33265]
[1745732466262,0.46292567,1796.4,1796.3,10.54045]
[1745732466447,0.46292567,1796.4,1796.3,7.33265]
[1745732466653,3.68477467,1796.5,1796.4,1.11309]
[1745732466853,3.68477467,1796.5,1796.4,4.95809]
[1745732467060,3.68477467,1796.5,1796.4,8.07229]
[1745732467359,3.68477467,1796.5,1796.4,11.08269]
[1745732467567,3.68477467,1796.6,1796.4,11.08269]
[1745732467863,3.68477467,1796.6,1796.5,2.9601]
[1745732468060,5.26052637,1796.6,1796.5,2.9601]
[1745732468261,13.46832637,1796.6,1796.4,4.95809]
[1745732468562,3.96533,1796.5,1796.4,3.845]
[1745732468759,7.5062217,1796.5,1796.4,3.845]
[1745732468963,6.3931917,1796.5,1796.4,3.845]
[1745732469463,7.5062217,1796.5,1796.4,3.845]
[1745732469657,6.3931917,1796.5,1796.4,3.845]
[1745732470258,6.3931917,1796.5,1796.4,4.95809]
[1745732470464,6.3931917,1796.5,1796.4,3.845]
[1745732470661,6.3931917,1796.5,1796.4,4.95809]
[1745732470855,7.5062217,1796.5,1796.4,3.845]
[1745732471364,7.5062217,1796.5,1796.4,4.95809]
[1745732471664,7.5062217,1796.5,1796.4,3.845]
[1745732472056,11.3931917,1796.5,1796.1,10.1729]
[1745732472256,10.18232,1796.4,1796.1,9.8935]
[1745732472566,3.0205,1796.3,1796.2,3.95391]
[1745732472860,1.7e-06,1796.4,1796.3,1.11315]
[1745732473064,3.68477467,1796.5,1796.4,1.11309]
[1745732473263,3.68477467,1796.5,1796.4,7.83559]
[1745732473465,3.68477467,1796.5,1796.4,10.67629]
[1745732476566,2.9622,1796.6,1796.5,1.11303]
[1745732476765,2.9622,1796.6,1796.5,7.15743]
[1745732477071,2.8706,1796.8,1796.6,1.11292]
[1745732477265,5.8328,1796.8,1796.7,2.8366]
[1745732478464,2.9622,1796.8,1796.7,3.9495]
[1745732478666,3.68477467,1796.9,1796.8,1.11284]
[1745732478867,3.68477467,1796.9,1796.8,2.8366]
[1745732479062,6.57857467,1796.9,1796.8,2.8366]
[1745732479269,6.57857467,1796.9,1796.8,3.94944]
[1745732479771,3.68477467,1796.9,1796.8,3.94944]
[1745732482063,3.68477467,1796.9,1796.8,6.21404]
[1745732482965,6.82457467,1797.1,1797.0,1.11272]
[1745732483164,3.68477467,1797.1,1797.0,1.11272]
[1745732483571,3.68477467,1797.1,1797.0,3.94812]
[1745732483966,3.68477467,1797.1,1797.0,7.79212]
[1745732484575,3.68477467,1797.1,1796.9,3.2078]
[1745732484774,3.1398,1797.0,1796.8,2.8354]
[1745732485071,0.45917059,1796.9,1796.8,2.8354]
[1745732486972,1.57197059,1796.9,1796.6,1.11292]
[1745732487169,1.57197059,1796.9,1796.6,3.45922]
[1745732487366,0.45917059,1796.8,1796.6,3.45922]
[1745732487674,0.45917059,1796.8,1796.7,2.3463]
[1745732487862,0.45917059,1796.8,1796.7,3.4592]
[1745732489276,0.45917059,1796.8,1796.7,6.667]
[1745732489475,3.68477467,1797.2,1796.7,5.5541]
[1745732489676,3.68477467,1797.2,1797.1,1.11265]
[1745732489973,3.68477467,1797.2,1797.0,1.11268]
[1745732490170,0.45888664,1797.1,1797.0,1.11268]
[1745732490379,0.45888664,1797.1,1796.9,1.11274]
[1745732490572,0.45888664,1797.1,1797.0,1.11272]
[1745732493177,0.45888664,1797.1,1796.9,3.2078]
[1745732493178,3.68477467,1797.2,1797.1,1.11265]
[1745732493370,3.68477467,1797.2,1797.1,4.95665]
[1745732493777,4.14353808,1797.2,1797.1,4.95665]
[1745732493978,4.14353808,1797.2,1797.1,3.844]
[1745732494178,0.45876341,1797.2,1797.1,3.844]
[1745732494880,1.57135341,1797.2,1797.1,3.844]
[1745732495079,3.54885341,1797.2,1797.1,3.844]
[1745732495378,3.54885341,1797.2,1796.8,5.68431]
[1745732495379,1.11272,1797.0,1796.8,9.52533]
[1745732495580,5.4579,1797.1,1796.8,9.52533]
[1745732495777,4.3452,1797.1,1796.9,1.11276]
[1745732495972,0.45876341,1797.0,1796.8,9.5253]
[1745732496176,1.57150341,1797.0,1796.8,8.4125]
[1745732496380,1.11274,1797.0,1796.8,8.4125]
[1745732496588,0.45882908,1796.9,1796.8,9.52532]
[1745732499581,3.68477467,1797.1,1796.9,1.11273]
[1745732499880,4.79743467,1797.1,1796.8,8.4125]
[1745732500181,3.68477467,1797.1,1796.9,1.11276]
[1745732500383,0.45917818,1797.0,1796.9,1.11276]
[1745732500685,0.45917818,1797.0,1796.8,8.4125]
[1745732500988,4.79747467,1797.1,1796.9,1.11278]
[1745732501576,0.45950299,1797.0,1796.8,9.5253]
[1745732501778,0.45950299,1797.0,1796.8,9.52533]
[1745732501977,0.45950299,1796.9,1796.8,9.52533]
[1745732502274,0.45950299,1796.9,1796.8,8.4125]
[1745732502475,2.74520299,1796.9,1796.8,8.4125]
[1745732502680,2.74520299,1796.9,1796.8,9.52534]
[1745732503577,2.74520299,1796.9,1796.8,8.4125]
[1745732503771,2.74520299,1796.9,1796.8,9.52534]
[1745732505687,2.74520299,1796.9,1796.8,6.1897]
[1745732506091,3.85798299,1796.9,1796.8,6.1897]
[1745732506281,3.85798299,1796.9,1796.8,8.3691]
[1745732506586,1.1129,1796.7,1796.5,3.2078]
[1745732506786,3.09078,1796.8,1796.6,2.1794]
[1745732507186,0.45997372,1796.7,1796.6,2.1794]
[1745732507486,0.45997372,1796.7,1796.6,3.29236]
[1745732509683,0.45997372,1796.7,1796.6,5.52596]
[1745732512178,9.23022555,1796.9,1796.8,1.11284]
[1745732512377,9.23022555,1796.9,1796.8,4.95384]
[1745732512579,9.69023686,1796.9,1796.8,4.95384]
[1745732514491,0.46001131,1796.9,1796.8,4.95384]
[1745732515485,0.46001131,1796.9,1796.8,7.21834]
[1745732515885,3.68477467,1797.0,1796.9,1.11278]
[1745732516080,3.68477467,1797.0,1796.9,10.96498]
[1745732516387,3.68477467,1797.0,1796.9,15.96498]
[1745732516886,3.68477467,1797.0,1796.9,10.96498]
[1745732517780,3.68477467,1797.0,1796.9,7.75718]
[1745732517979,4.14495287,1797.0,1796.9,7.75718]
[1745732518791,0.4601782,1797.0,1796.9,7.75718]
[1745732520582,1.5728982,1797.0,1796.9,2.2645]
[1745732520886,0.4601782,1797.0,1796.9,2.2645]
[1745732521079,0.4601782,1797.0,1796.9,3.37728]
[1745732521890,0.4601782,1797.0,1796.9,6.58508]
[1745732522085,3.68477467,1797.2,1797.1,1.11265]
[1745732522289,3.68477467,1797.2,1797.1,4.95365]
[1745732522491,7.37926024,1797.2,1797.1,4.95365]
[1745732522691,7.37926024,1797.2,1797.1,9.30615]
[1745732522883,7.83927573,1797.2,1797.1,9.30615]
[1745732525294,7.37926024,1797.2,1797.1,9.30615]
[1745732526190,7.38414397,1797.2,1797.1,9.30615]
[1745732526390,7.39114235,1797.3,1797.2,1.11259]
[1745732526592,4.26487881,1797.3,1797.2,3.32989]
[1745732526800,5.55447797,1797.3,1797.2,3.32989]
[1745732532289,6.52047881,1797.6,1797.5,1.11241]
[1745732532290,2.2556,1797.6,1797.5,1.11241]
[1745732532496,2.2556,1797.6,1797.5,4.95041]
[1745732532693,2.71472599,1797.6,1797.5,4.95041]
[1745732533286,2.71472599,1797.6,1797.5,7.10191]
[1745732533798,2.2556,1797.6,1797.5,7.10191]
[1745732533993,2.2556,1797.6,1797.5,3.838]
[1745732534198,3.9544,1797.6,1797.5,3.838]
[1745732534497,4.41332427,1797.6,1797.5,3.838]
[1745732534699,4.41332427,1797.6,1797.5,5.9565]
[1745732535197,2.71452427,1797.6,1797.5,7.06891]
[1745732535386,2.71452427,1797.6,1797.5,5.9565]
[1745732535592,6.41523028,1797.6,1797.5,5.9565]
[1745732535992,8.11403028,1797.6,1797.5,5.9565]
[1745732536398,8.11403028,1797.6,1797.5,7.06891]
[1745732536894,8.11403028,1797.6,1797.5,5.9565]
[1745732537296,8.11403028,1797.6,1797.5,7.06891]
[1745732538397,4.41332427,1797.6,1797.5,7.06891]
[1745732538603,2.71452427,1797.6,1797.5,7.06891]
[1745732539402,2.2556,1797.6,1797.5,7.06891]
[1745732540502,2.71514216,1797.6,1797.5,7.06891]
[1745732540803,2.71514216,1797.6,1797.5,5.9565]
[1745732541100,4.41284216,1797.6,1797.5,7.06891]
[1745732542398,9.41284216,1797.6,1797.5,7.06891]
[1745732542605,9.41284216,1797.6,1797.5,4.95041]
[1745732542807,4.41284216,1797.6,1797.5,4.95041]
[1745732544107,4.41284216,1797.6,1797.5,3.838]
[1745732544505,10.52518216,1797.6,1797.5,3.838]
[1745732544703,1.11247,1797.4,1797.3,2.2736]
[1745732545009,1.11253,1797.3,1797.2,3.837]
[1745732545304,5.01713,1797.3,1797.2,3.837]
[1745732545501,3.9046,1797.3,1797.2,4.94959]
[1745732545704,4.36414216,1797.3,1797.2,4.94959]
[1745732546805,4.36414216,1797.3,1797.2,7.22319]
[1745732547109,5.47667216,1797.3,1797.2,6.1106]
[1745732547409,5.47667216,1797.3,1797.2,7.22319]
[1745732547607,5.47667216,1797.3,1797.2,6.1106]
[1745732548203,9.36414216,1797.3,1796.9,3.2078]
[1745732548410,4.55929216,1797.2,1797.0,4.94972]
[1745732548606,4.55929216,1797.2,1797.0,6.97722]
[1745732548794,1.0379,1797.1,1797.0,6.97722]
[1745732549001,1.49744216,1797.1,1797.0,6.97722]
[1745732550304,0.45954216,1797.1,1797.0,6.97722]
[1745732555512,0.45954216,1797.2,1797.1,1.11265]
[1745732555713,0.45954216,1797.2,1797.1,5.07395]
[1745732556511,0.45954216,1797.2,1797.1,3.9613]
[1745732556706,1.57213216,1797.2,1797.1,1.9516]
[1745732556907,1.11265,1797.1,1797.0,3.837]
[1745732557199,2.15115,1797.1,1797.0,3.837]
[1745732557410,2.61069216,1797.1,1797.0,3.837]
[1745732557817,2.61069216,1797.1,1797.0,5.8368]
[1745732559325,5.81849216,1797.1,1797.0,5.8368]
[1745732559526,9.70584216,1797.1,1796.7,3.835]
[1745732559729,1.11284,1796.8,1796.7,5.7799]
[1745732559919,1.11284,1796.9,1796.7,6.8928]
[1745732560120,1.11284,1796.8,1796.7,5.7799]
[1745732560326,1.57238216,1796.8,1796.7,5.7799]
[1745732560525,0.45954216,1796.8,1796.7,6.8928]
[1745732561522,1.57238216,1796.8,1796.7,5.7799]
[1745732561725,2.61088216,1796.8,1796.7,5.7799]
[1745732564726,7.61088216,1796.8,1796.7,1.9449]
[1745732565627,6.49804216,1796.8,1796.4,7.0438]
[1745732565824,7.74438216,1796.7,1796.5,1.11299]
[1745732566122,2.9886,1796.6,1796.5,1.11299]
[1745732566329,3.44814216,1796.6,1796.5,1.11299]
[1745732568829,3.44814216,1796.6,1796.5,3.12739]
[1745732569128,2.9886,1796.6,1796.5,3.12739]
[1745732569336,3.2078,1796.7,1796.6,1.11296]
[1745732569633,3.2078,1796.7,1796.6,5.01156]
[1745732570130,3.66664098,1796.7,1796.6,5.01156]
[1745732570328,0.45884098,1796.7,1796.6,8.21936]
[1745732570728,0.45884098,1796.7,1796.6,13.21936]
[1745732571030,3.70070601,1796.8,1796.7,1.1129]
[1745732571232,3.70070601,1796.8,1796.7,8.897]
[1745732574336,3.2078,1797.1,1797.0,1.11272]
[1745732574637,1.11274,1797.0,1796.8,1.9867]
[1745732575036,0.45975161,1796.9,1796.8,1.9867]
[1745732575736,0.45975161,1796.9,1796.8,3.09954]
[1745732577833,0.45975161,1796.9,1796.8,1.9867]
[1745732578139,1.57253161,1796.9,1796.8,1.9867]
[1745732578534,3.56643161,1796.9,1796.8,1.9867]
[1745732579035,3.56643161,1796.9,1796.7,3.0466]
[1745732579238,1.11297,1796.6,1796.4,3.07057]
[1745732579742,1.11297,1796.6,1796.5,1.9575]
[1745732580138,5.00356,1796.7,1796.5,1.9575]
[1745732580540,0.45977401,1796.6,1796.5,3.07053]
[1745732581147,0.45977401,1796.6,1796.5,6.79253]
[1745732581746,0.45977401,1796.6,1796.5,5.6795]
[1745732582245,1.57273401,1796.6,1796.5,1.9575]
[1745732582437,5.37623401,1796.6,1796.5,1.9575]
[1745732582638,7.38143401,1796.6,1796.5,1.9575]
[1745732585343,6.92166,1796.6,1796.5,1.9575]
[1745732585540,6.92166,1796.6,1796.3,7.8845]
[1745732585541,1.11309,1796.4,1796.3,3.836]
[1745732585746,1.11318,1796.3,1796.1,3.09953]
[1745732585946,1.11318,1796.3,1796.2,1.9052]
[1745732586541,1.11318,1796.3,1796.0,5.843]
[1745732586542,1.11327,1796.1,1796.0,5.843]
[1745732586742,5.99101,1796.1,1795.6,7.0408]
[1745732586947,1.1134,1795.9,1795.8,2.0549]
[1745732587146,4.78082505,1795.9,1795.8,2.0549]
[1745732587349,6.69412505,1795.9,1795.8,2.0549]
[1745732589160,2.50468505,1795.9,1795.8,2.0549]
[1745732589453,3.70070601,1796.6,1796.4,1.11306]
[1745732589654,9.93476601,1796.6,1796.5,2.0549]
[1745732590358,1.11308,1796.5,1796.2,1.9268]
[1745732590650,2.0648,1796.5,1796.4,1.11309]
[1745732590854,8.77940601,1796.6,1796.4,1.11309]
[1745732591056,11.95716601,1796.6,1796.5,1.9116]
[1745732591958,8.25646,1796.6,1796.5,1.9116]
[1745732593261,8.25646,1796.6,1796.5,3.02463]
[1745732593262,7.1435,1796.6,1796.5,3.02463]
[1745732593560,3.2078,1796.6,1796.5,3.02463]
[1745732594262,16.25487047,1796.9,1796.8,1.11284]
[1745732594560,16.25487047,1796.9,1796.7,1.11287]
[1745732594760,9.22428529,1796.9,1796.8,1.9912]
[1745732595154,11.16258529,1796.9,1796.8,3.10404]
[1745732595352,12.27536529,1796.9,1796.8,1.9912]
[1745732596069,14.15826529,1796.9,1796.8,1.9912]
[1745732596360,1.11286,1796.8,1796.6,5.07924]
[1745732596560,2.99516,1796.8,1796.6,6.95064]
[1745732596762,1.1129,1796.7,1796.6,5.8377]
[1745732597062,2.9952,1796.7,1796.6,1.8714]
[1745732597254,1.8823,1796.7,1796.6,2.98436]
[1745732597454,2.9952,1796.7,1796.6,1.8714]
[1745732597755,1.8823,1796.7,1796.6,1.8714]
[1745732598057,1.11296,1796.6,1796.3,3.9146]
[1745732598265,3.2078,1796.8,1796.4,5.0792]
[1745732598559,4.32066,1796.8,1796.6,1.11293]
[1745732598759,6.20296,1796.8,1796.7,1.8714]
[1745732599456,5.0901,1796.8,1796.5,1.11301]
[1745732599656,1.11296,1796.6,1796.5,3.06851]
[1745732599861,3.12815,1796.7,1796.5,3.06851]
[1745732600365,3.12814,1796.7,1796.5,3.06851]
[1745732600965,1.11296,1796.6,1796.5,1.9555]
[1745732601167,3.12815,1796.7,1796.5,1.9555]
[1745732601365,3.12815,1796.7,1796.5,3.06849]
[1745732601664,3.12815,1796.7,1796.6,1.9555]
[1745732601867,6.81833387,1796.7,1796.6,1.9555]
[1745732602168,7.26695195,1796.7,1796.6,1.9555]
[1745732606965,1.11299,1796.6,1796.4,3.2078]
[1745732607169,1.11299,1796.6,1796.5,1.11302]
[1745732607361,1.11299,1796.6,1796.5,3.10362]
[1745732607561,1.56160808,1796.6,1796.5,3.10362]
[1745732607859,1.56160808,1796.6,1796.5,1.9906]
[1745732608259,7.44580808,1796.6,1796.5,1.9906]
[1745732608466,10.65360808,1796.6,1796.5,1.9906]
[1745732608659,7.44580808,1796.6,1796.5,1.9906]
[1745732610763,7.88379389,1796.6,1796.5,3.10363]
[1745732610970,5.98389389,1796.6,1796.5,3.10363]
[1745732611469,7.09685389,1796.6,1796.5,1.9906]
[1745732611661,5.98389389,1796.6,1796.5,3.10363]
[1745732611863,7.09685389,1796.6,1796.5,1.9906]
[1745732612768,7.09685389,1796.6,1796.5,3.10363]
[1745732613173,7.09685389,1796.6,1796.5,1.9906]
[1745732613674,9.13205389,1796.6,1796.5,1.9906]
[1745732614474,9.13205389,1796.6,1796.5,3.10363]
[1745732614666,9.13205389,1796.6,1796.5,1.9906]
[1745732614872,4.1411733,1796.6,1796.5,3.10363]
[1745732615171,5.2541333,1796.6,1796.5,3.10363]
[1745732616777,4.1411733,1796.6,1796.5,3.10363]
[1745732617977,5.98389389,1796.6,1796.5,3.10363]
[1745732618378,7.09685389,1796.6,1796.5,1.9906]
[1745732619076,9.10355389,1796.6,1796.5,1.9906]
[1745732619772,12.31135389,1796.6,1796.5,1.9906]
[1745732622079,12.31135389,1796.6,1796.5,3.10363]
[1745732622379,20.6094293,1796.6,1796.5,3.10363]
[1745732622579,20.6094293,1796.6,1796.5,1.9906]
[1745732622880,1.11321,1796.2,1796.1,3.833]
[1745732623176,1.11321,1796.2,1796.1,5.7406]
[1745732623480,1.56182808,1796.2,1796.1,1.9076]
[1745732623678,1.56182808,1796.2,1796.0,1.11331]
[1745732623679,1.1133,1796.1,1795.9,4.32115]
[1745732623882,1.1133,1796.1,1795.9,6.22875]
[1745732624085,1.1133,1796.1,1795.9,5.1154]
[1745732624379,1.1133,1796.1,1796.0,1.9558]
[1745732624681,1.56308785,1796.1,1796.0,1.9558]
[1745732625178,3.51138785,1796.1,1796.0,1.9558]
[1745732625577,1.56308785,1796.1,1796.0,1.9558]
[1745732626579,1.56308785,1796.1,1796.0,3.06914]
[1745732626876,1.56308785,1796.1,1796.0,1.9558]